bitfinex-derivatives/quotes_BTCF0:USTF0_20250405
["timestamp","ask_amount","ask_price","bid_price","bid_amount"]
[1743816636712,8e-05,84258.0,84256.0,0.1103]
[1743816636907,8e-05,84258.0,84256.0,0.1109]
[1743816637608,8e-05,84258.0,84256.0,0.1103]
[1743816638216,8e-05,84258.0,84256.0,0.1934112]
[1743816638512,8e-05,84258.0,84256.0,0.1103]
[1743816640313,0.0831101,84258.0,84256.0,0.1103]
[1743816640612,0.041555,84258.0,84253.0,0.3608]
[1743816640814,0.0831126,84255.0,84254.0,0.1093]
[1743816641310,0.2759553,84257.0,84254.0,0.1093]
[1743816641717,0.0831118,84256.0,84254.0,0.1093]
[1743816642010,0.2344,84257.0,84254.0,0.1093]
[1743816642215,0.317511,84257.0,84254.0,0.1093]
[1743816642519,0.0831117,84256.0,84254.0,0.1099]
[1743816642709,0.0842717,84256.0,84254.0,0.1099]
[1743816643921,0.2005717,84256.0,84254.0,0.08138289]
[1743816644521,0.11746,84256.0,84254.0,0.06653023]
[1743816645018,0.2005717,84256.0,84254.0,0.06653023]
[1743816646029,0.11746,84256.0,84254.0,0.06653023]
[1743816646522,0.2005717,84256.0,84254.0,0.06653023]
[1743816647115,0.0831126,84255.0,84254.0,0.06653023]
[1743816647417,0.19399261,84255.0,84254.0,0.0006]
[1743816651422,0.0831173,84251.0,84245.0,0.10967809]
[1743816651624,0.2301,84250.0,84245.0,0.41221014]
[1743816651823,0.4218176,84250.0,84246.0,0.1128]
[1743816652009,0.33978001,84250.0,84246.0,0.1128]
[1743816652209,0.33978001,84250.0,84246.0,0.52483205]
[1743816652924,0.33978001,84250.0,84246.0,0.1128]
[1743816654610,0.42289771,84250.0,84246.0,0.1128]
[1743816655215,0.42289771,84250.0,84246.0,0.2308]
[1743816655418,0.0831188,84249.0,84246.0,0.2308]
[1743816655722,0.421818,84250.0,84246.0,0.2308]
[1743816655927,0.2309,84248.0,84246.0,0.2308]
[1743816656426,0.2309,84248.0,84245.0,0.00017809]
[1743816656427,0.0831215,84246.0,84245.0,0.00017809]
[1743816656615,0.00108001,84246.0,84245.0,0.00017809]
[1743816656819,0.00108001,84246.0,84245.0,0.22897809]
[1743816657624,0.11888001,84246.0,84245.0,0.22897809]
[1743816659027,0.00108001,84246.0,84245.0,0.22897809]
[1743816659231,0.0415576,84253.0,84245.0,0.22897809]
[1743816659427,8e-05,84247.0,84245.0,0.22897809]
[1743816659631,8e-05,84247.0,84246.0,0.1096]
[1743816660131,0.00116001,84247.0,84246.0,0.23138]
[1743816664430,0.00116001,84247.0,84246.0,0.2165262]
[1743816666129,0.00116001,84247.0,84246.0,0.5773262]
[1743816666330,0.08428051,84247.0,84246.0,0.4566262]
[1743816666634,0.08428051,84247.0,84245.0,0.00017809]
[1743816666635,0.36196001,84247.0,84239.0,0.00016]
[1743816666837,0.0831274,84240.0,84239.0,0.00016]
[1743816667032,0.0831363,84231.0,84230.0,0.3608]
[1743816667834,0.0846163,84231.0,84230.0,0.3608]
[1743816668035,0.3170163,84231.0,84230.0,0.3608]
[1743816671138,0.0831393,84228.0,84227.0,0.12131927]
[1743816671340,0.0831393,84228.0,84227.0,0.00891927]
[1743816671536,0.0831403,84227.0,84223.0,0.1124]
[1743816671737,0.0831432,84224.0,84223.0,0.1124]
[1743816674944,0.0831432,84224.0,84223.0,0.12999378]
[1743816675138,0.0831432,84224.0,84223.0,0.13903045]
[1743816676141,0.0831432,84224.0,84223.0,0.02663045]
[1743816676346,0.0831432,84224.0,84222.0,0.00017809]
[1743816676347,0.0831442,84223.0,84222.0,0.00017809]
[1743816677142,0.08454421,84223.0,84222.0,0.00017809]
[1743816678543,0.08454421,84223.0,84222.0,0.00904967]
[1743816678751,0.08454421,84223.0,84222.0,0.0266575]
[1743816678950,0.08454421,84223.0,84222.0,0.23978592]
[1743816680237,0.0831442,84223.0,84222.0,0.23978592]
[1743816680851,0.08454421,84223.0,84222.0,0.23978592]
[1743816681558,0.08454421,84223.0,84222.0,0.2488679]
[1743816683349,0.08454421,84223.0,84222.0,0.6096679]
[1743816685244,0.08454421,84223.0,84222.0,0.2488679]
[1743816685549,0.08454421,84223.0,84222.0,0.6096679]
[1743816689255,0.00140001,84223.0,84222.0,0.6096679]
[1743816690145,0.0415687,84230.0,84222.0,0.6096679]
[1743816690146,0.00017809,84239.0,84232.0,0.0831349]
[1743816690355,0.00117809,84239.0,84237.0,0.3608]
[1743816690559,0.08430649,84239.0,84238.0,0.2318]
[1743816692151,0.08430649,84239.0,84238.0,0.1188]
[1743816692853,0.31020649,84239.0,84238.0,0.1188]
[1743816694159,0.0831403,84227.0,84226.0,0.1186]
[1743816694459,0.0831403,84227.0,84226.0,0.11038]
[1743816694856,0.08410031,84227.0,84226.0,0.11038]
[1743816698261,0.08410031,84227.0,84226.0,8e-05]
[1743816698463,0.31320031,84227.0,84226.0,8e-05]
[1743816699054,0.0831442,84223.0,84222.0,0.3876679]
[1743816699555,0.08418421,84223.0,84222.0,0.3876679]
[1743816700157,0.20318421,84223.0,84222.0,0.3876679]
[1743816700766,0.20318421,84223.0,84222.0,0.0268679]
[1743816700963,0.20318421,84223.0,84222.0,0.3876679]
[1743816711164,0.20318421,84223.0,84222.0,0.00926007]
[1743816711368,0.0831541,84213.0,84212.0,0.3608]
[1743816711564,0.0831541,84213.0,84212.0,0.36088]
[1743816711770,0.08411411,84213.0,84212.0,0.47828]
[1743816712066,0.08411411,84213.0,84212.0,0.48715538]
[1743816712370,0.31991411,84213.0,84212.0,0.50519447]
[1743816715655,0.08411411,84213.0,84212.0,0.50519447]
[1743816717970,0.20391411,84213.0,84212.0,0.50519447]
[1743816719967,0.20391411,84213.0,84212.0,0.49033343]
[1743816721468,0.08411411,84213.0,84212.0,0.49033343]
[1743816721667,0.00096001,84213.0,84212.0,0.57348853]
[1743816721876,0.08411411,84213.0,84212.0,0.49033343]
[1743816722168,0.00096001,84213.0,84212.0,0.57348853]
[1743816722472,0.00096001,84213.0,84212.0,0.69238853]
[1743816722676,0.00096001,84213.0,84212.0,0.60923343]
[1743816723176,0.00017809,84221.0,84213.0,0.0831541]
[1743816723471,0.0831482,84219.0,84214.0,0.051]
[1743816723662,8e-05,84226.0,84214.0,0.051]
[1743816723663,8e-05,84226.0,84220.0,0.3608]
[1743816723858,0.0416492,84229.0,84225.0,0.3608]
[1743816723859,8e-05,84229.0,84225.0,0.3608]
[1743816724074,8e-05,84232.0,84226.0,0.226]
[1743816724276,0.0415675,84233.0,84230.0,0.3608]
[1743816724467,0.0831353,84232.0,84231.0,0.1144]
[1743816725170,0.0831353,84232.0,84231.0,0.115]
[1743816726381,0.0831353,84232.0,84231.0,0.2307]
[1743816728679,0.083132,84236.0,84231.0,0.2307]
[1743816730467,0.00017809,84240.0,84231.0,0.2307]
[1743816730777,0.00017809,84240.0,84238.0,0.3608]
[1743816730974,0.08330559,84240.0,84239.0,0.3546]
[1743816731579,0.08330559,84240.0,84239.0,0.3552]
[1743816733874,0.08398559,84240.0,84239.0,0.3552]
[1743816737682,0.00085809,84240.0,84239.0,0.3552]
[1743816737870,0.0415496,84269.0,84239.0,0.3552]
[1743816737871,0.1980098,84258.0,84239.0,0.3552]
[1743816738076,0.00068,84258.0,84256.0,0.3608]
[1743816738275,0.0837897,84258.0,84257.0,0.3572]
[1743816738475,0.0837897,84258.0,84257.0,0.35788]
[1743816738678,0.0837897,84258.0,84257.0,0.34302666]
[1743816738987,0.0831097,84258.0,84257.0,0.34302666]
[1743816739178,0.0831097,84258.0,84257.0,0.3598854]
[1743816740778,0.0838297,84258.0,84257.0,0.3598854]
[1743816742284,8e-05,84261.0,84260.0,0.0831077]
[1743816742480,0.00017809,84266.0,84260.0,0.0006]
[1743816742677,0.08327989,84266.0,84265.0,0.3608]
[1743816742983,0.08327989,84266.0,84265.0,0.4445028]
[1743816742984,0.00085809,84266.0,84265.0,0.4445028]
[1743816743177,0.00025809,84266.0,84265.0,0.3614]
[1743816743485,0.08327989,84266.0,84265.0,0.3614]
[1743816743680,0.00017809,84266.0,84265.0,0.3614]
[1743816744086,0.08327989,84266.0,84265.0,0.3614]
[1743816745982,0.08395989,84266.0,84265.0,0.3614]
[1743816746185,0.00085809,84266.0,84265.0,0.3614]
[1743816746383,0.00017809,84266.0,84265.0,0.3614]
[1743816746586,0.08327989,84266.0,84265.0,0.3614]
[1743816747082,0.08395989,84266.0,84265.0,0.3614]
[1743816747277,0.00085809,84266.0,84265.0,0.3614]
[1743816747779,0.08395989,84266.0,84265.0,0.3614]
[1743816749090,0.00085809,84266.0,84265.0,0.3614]
[1743816749290,0.00017809,84266.0,84265.0,0.3614]
[1743816751994,0.00085809,84266.0,84265.0,0.3614]
[1743816752181,0.20515989,84266.0,84265.0,0.3614]
[1743816768496,0.20515989,84266.0,84265.0,0.34654903]
[1743816782409,0.0831097,84258.0,84257.0,0.02572145]
[1743816782603,0.0839497,84258.0,84257.0,0.00064]
[1743816783308,0.1986497,84258.0,84257.0,0.00064]
[1743816783709,0.3198497,84258.0,84257.0,0.12194]
[1743816784514,0.3198497,84258.0,84257.0,0.14710667]
[1743816785819,0.3198497,84258.0,84257.0,0.02580667]
[1743816786816,0.3198497,84258.0,84257.0,0.01095361]
[1743816787007,0.0831107,84257.0,84256.0,0.3608]
[1743816787408,0.3133107,84257.0,84256.0,0.3608]
[1743816788334,0.3133107,84257.0,84256.0,0.36990119]
[1743816788743,0.31443071,84257.0,84256.0,0.35804976]
[1743816790715,0.31443071,84257.0,84256.0,0.02576775]
[1743816791018,0.0831117,84256.0,84255.0,0.3608]
[1743816791415,0.2000117,84256.0,84255.0,0.3608]
[1743816791611,0.2010917,84256.0,84255.0,0.3608]
[1743816792010,0.0831176,84250.0,84249.0,0.00017809]
[1743816792914,0.3110176,84250.0,84249.0,0.02556227]
[1743816793106,0.3110176,84250.0,84249.0,0.00017809]
[1743816794323,0.31205761,84250.0,84249.0,0.00017809]
[1743816795620,0.31205761,84250.0,84249.0,0.00904337]
[1743816795814,0.31205761,84250.0,84235.0,0.05096]
[1743816795815,0.0831353,84232.0,84231.0,0.3608]
[1743816796019,0.0831353,84232.0,84231.0,0.4776]
[1743816797022,0.0831353,84232.0,84231.0,0.48638954]
[1743816797426,0.0831353,84232.0,84231.0,0.38668664]
[1743816797812,0.19977531,84232.0,84231.0,0.38668664]
[1743816799817,0.08417531,84232.0,84231.0,0.38668664]
[1743816800017,0.0831353,84232.0,84231.0,0.38668664]
[1743816804220,0.0831353,84232.0,84231.0,0.02588664]
[1743816804534,0.0831393,84228.0,84227.0,0.2346]
[1743816805119,0.08417931,84228.0,84227.0,0.13602502]
[1743816805521,0.08417931,84228.0,84227.0,0.14508573]
[1743816808332,0.00104001,84228.0,84227.0,0.14508573]
[1743816808833,0.0831393,84228.0,84227.0,0.14508573]
[1743816809028,0.20127931,84228.0,84227.0,0.14508573]
[1743816809731,0.08417931,84228.0,84227.0,0.14508573]
[1743816820344,0.00104001,84228.0,84227.0,0.14508573]
[1743816820538,8e-05,84229.0,84227.0,0.14508573]
[1743816820839,0.08425831,84229.0,84227.0,0.14508573]
[1743816821048,0.0831393,84228.0,84227.0,0.14508573]
[1743816821339,0.0842193,84228.0,84227.0,0.14508573]
[1743816822337,0.00108,84228.0,84227.0,0.14508573]
[1743816822537,8e-05,84229.0,84227.0,0.14508573]
[1743816822837,0.08417861,84229.0,84227.0,0.14508573]
[1743816823536,0.00104001,84229.0,84227.0,0.14508573]
[1743816823833,0.0831393,84228.0,84227.0,0.14508573]
[1743816824234,8e-05,84230.0,84227.0,0.14508573]
[1743816824435,0.0831393,84228.0,84227.0,0.14508573]
[1743816824735,0.0842193,84228.0,84227.0,0.14508573]
[1743816825345,0.2006193,84228.0,84227.0,0.14508573]
[1743816827837,0.3176193,84228.0,84227.0,0.14508573]
[1743816829341,0.3176193,84228.0,84227.0,0.03068573]
[1743816834445,0.00017809,84240.0,84227.0,0.03068573]
[1743816834746,0.0415606,84247.0,84227.0,0.03068573]
[1743816834747,0.0831212,84247.0,84237.0,0.3608]
[1743816834954,0.0415594,84249.0,84246.0,0.3608]
[1743816835133,0.0422794,84249.0,84247.0,0.2224]
[1743816835340,0.0415594,84249.0,84247.0,0.223]
[1743816835542,0.0415578,84252.0,84247.0,0.223]
[1743816835845,0.0831195,84248.0,84247.0,0.223]
[1743816836049,0.0838395,84248.0,84247.0,0.223]
[1743816839652,0.0838395,84248.0,84247.0,0.20814566]
[1743816844551,0.0838395,84248.0,84247.0,0.1122]
[1743816854670,0.0838395,84248.0,84247.0,0.09734477]
[1743816875793,0.2025395,84248.0,84247.0,0.09734477]
[1743816877604,0.0838395,84248.0,84247.0,0.09734477]
[1743816883306,0.1954395,84248.0,84247.0,0.09734477]
[1743816885402,0.0838395,84248.0,84247.0,0.09734477]
[1743816885802,0.0838395,84248.0,84247.0,0.09674477]
[1743816886621,0.0838395,84248.0,84247.0,0.09734477]
[1743816887116,0.1990395,84248.0,84247.0,0.09734477]
[1743816895207,0.1990395,84248.0,84247.0,0.05283077]
[1743816895408,0.0831363,84231.0,84230.0,0.34684224]
[1743816895708,0.0831363,84231.0,84230.0,0.34752224]
[1743816895909,0.0840563,84231.0,84230.0,0.34752224]
[1743816897011,0.0840563,84231.0,84230.0,0.00068]
[1743816897206,0.0840563,84231.0,84230.0,0.36148]
[1743816898516,0.0840563,84231.0,84230.0,0.60008]
[1743816899216,0.0840563,84231.0,84230.0,0.23928]
[1743816899412,0.0840563,84231.0,84230.0,0.60008]
[1743816899812,0.0831363,84231.0,84230.0,0.60008]
[1743816900713,0.0415668,84234.0,84230.0,0.60008]
[1743816900910,0.0831363,84231.0,84230.0,0.60008]
[1743816905022,0.0831363,84231.0,84230.0,0.6]
[1743816905221,1e-08,84231.0,84230.0,0.6]
[1743816906522,1e-08,84231.0,84230.0,0.6831373]
[1743816909515,0.0831183,84250.0,84230.0,0.75]
[1743816909711,0.0831982,84250.0,84249.0,0.3608]
[1743816910029,0.0841182,84250.0,84249.0,0.3614]
[1743816910221,0.0840382,84250.0,84249.0,0.3614]
[1743816910823,0.0840382,84250.0,84249.0,0.34654621]
[1743816914531,0.0840382,84250.0,84249.0,0.3614]
[1743816915430,0.0840382,84250.0,84249.0,0.0006]
[1743816915822,0.0840382,84250.0,84249.0,0.3614]
[1743816916024,0.1952382,84250.0,84249.0,0.3614]
[1743816917545,0.1952382,84250.0,84249.0,0.0006]
[1743816917747,0.1952382,84250.0,84249.0,0.3614]
[1743816918842,0.1952382,84250.0,84249.0,0.0006]
[1743816919037,0.1952382,84250.0,84249.0,0.3614]
[1743816919645,0.1952382,84250.0,84249.0,0.0006]
[1743816919846,0.3098382,84250.0,84249.0,0.0006]
[1743816920046,0.3098382,84250.0,84249.0,0.3614]
[1743816920546,0.3098382,84250.0,84249.0,0.0006]
[1743816920732,0.3098382,84250.0,84249.0,0.3614]
[1743816921246,0.0840382,84250.0,84249.0,0.3614]
[1743816921548,0.1584555,84257.0,84249.0,0.3614]
[1743816921848,0.1593755,84257.0,84256.0,0.3608]
[1743816923150,0.2733755,84257.0,84256.0,0.3608]
[1743816925152,0.2733755,84257.0,84256.0,0.36172]
[1743816925355,0.00092,84257.0,84256.0,0.36172]
[1743816925654,0.0831107,84257.0,84256.0,0.36172]
[1743816925843,0.0840307,84257.0,84256.0,0.36172]
[1743816926039,0.00092,84257.0,84256.0,0.36172]
[1743816926245,0.3608,84288.0,84256.0,0.51172]
[1743816926548,0.0830919,84276.0,84275.0,0.3608]
[1743816926747,0.0830919,84276.0,84275.0,0.36148]
[1743816926947,8e-05,84277.0,84275.0,0.36148]
[1743816927149,0.0831709,84277.0,84276.0,0.1094]
[1743816927351,0.0830909,84277.0,84276.0,0.11]
[1743816927854,0.1986909,84277.0,84276.0,0.11]
[1743816928055,0.1994109,84277.0,84276.0,0.11]
[1743816928550,0.1994109,84277.0,84276.0,0.12788989]
[1743816929555,0.4234109,84277.0,84276.0,0.13682914]
[1743816930245,0.4234109,84277.0,84276.0,0.10831847]
[1743816932956,0.4234109,84277.0,84276.0,0.09346917]
[1743816933157,0.4234109,84277.0,84276.0,0.02742914]
[1743816933760,0.3078109,84277.0,84276.0,0.02742914]
[1743816934050,0.1928109,84277.0,84276.0,0.02742914]
[1743816934255,0.0838109,84277.0,84276.0,0.02742914]
[1743816936156,0.0838109,84277.0,84276.0,0.13842914]
[1743816938055,0.1972109,84277.0,84276.0,0.13842914]
[1743816938254,0.3100109,84277.0,84276.0,0.13842914]
[1743816942154,0.3100109,84277.0,84276.0,0.25072914]
[1743816944562,0.3100109,84277.0,84276.0,0.22221845]
[1743816944857,0.3100109,84277.0,84276.0,0.22281845]
[1743816945063,0.3100109,84277.0,84276.0,0.20796916]
[1743816946560,0.3100109,84277.0,84276.0,0.22545617]
[1743816949164,0.3100109,84277.0,84276.0,0.23425424]
[1743816954566,0.1966109,84277.0,84276.0,0.23425424]
[1743816955066,0.0838109,84277.0,84276.0,0.23425424]
[1743816955570,0.0838909,84277.0,84276.0,0.23425424]
[1743816956168,0.0838909,84277.0,84276.0,0.21940521]
[1743816957071,0.0830909,84277.0,84276.0,0.21940521]
[1743816957665,0.0838909,84277.0,84276.0,0.21940521]
[1743816958667,0.0008,84277.0,84276.0,0.30249711]
[1743816958868,0.08326228,84284.0,84279.0,0.0830887]
[1743816959076,0.08406228,84284.0,84283.0,0.3608]
[1743816959372,0.08406228,84284.0,84283.0,0.3614]
[1743816961566,0.19736228,84284.0,84283.0,0.3614]
[1743816962768,0.08406228,84284.0,84283.0,0.3614]
[1743816962969,0.08406228,84284.0,84283.0,0.5885]
[1743816963280,0.00097798,84284.0,84283.0,0.5885]
[1743816963480,0.00017798,84284.0,84283.0,0.5885]
[1743816963677,0.08326198,84284.0,84283.0,0.5885]
[1743816965171,0.08406198,84284.0,84283.0,0.5885]
[1743816967679,0.00097798,84284.0,84283.0,0.671585]
[1743816967884,0.10947021,84284.0,84283.0,0.671585]
[1743816968082,0.10947021,84284.0,84283.0,0.65673889]
[1743816968282,0.10947021,84284.0,84283.0,0.62823476]
[1743816970876,8e-05,84293.0,84292.0,0.0830762]
[1743816971180,0.0008,84293.0,84292.0,0.4444762]
[1743816971583,0.0008,84293.0,84292.0,0.6789762]
[1743816973084,0.36758472,84298.0,84297.0,0.0830712]
[1743816973293,0.22228289,84298.0,84297.0,0.4444712]
[1743816973480,0.22168288,84298.0,84297.0,0.3614]
[1743816973676,0.22228289,84298.0,84297.0,0.3614]
[1743816973876,0.22228289,84298.0,84297.0,0.6697712]
[1743816974088,0.22232288,84298.0,84297.0,0.6697712]
[1743816974881,0.30539308,84298.0,84297.0,0.4752]
[1743816975791,0.3050102,84298.0,84297.0,0.4752]
[1743816975984,0.3050102,84298.0,84297.0,0.3614]
[1743816977693,0.3050102,84298.0,84297.0,0.0006]
[1743816987898,0.6658102,84298.0,84297.0,0.00029553]
[1743816988201,0.0830781,84290.0,84289.0,0.00017798]
[1743816988407,0.0837581,84290.0,84289.0,0.00081798]
[1743816989002,0.3149581,84290.0,84289.0,0.00081798]
[1743816991906,0.1978581,84290.0,84289.0,0.00081798]
[1743816993395,0.0830747,84294.0,84289.0,0.00081798]
[1743816993599,0.0838347,84294.0,84293.0,0.3608]
[1743816993800,0.0839147,84294.0,84293.0,0.3614]
[1743816994500,0.12094,84294.0,84293.0,0.3614]
[1743816994702,0.2040142,84294.0,84293.0,0.3614]
[1743816995094,0.2040142,84294.0,84293.0,0.4701]
[1743816995503,0.12094,84294.0,84293.0,0.4701]
[1743816995807,0.00084,84294.0,84293.0,0.5531752]
[1743816996107,8e-05,84294.0,84293.0,0.5531752]
[1743816996500,0.00017786,84301.0,84296.0,0.041536]
[1743816996701,0.00085786,84301.0,84300.0,0.3608]
[1743816997511,0.00085786,84301.0,84300.0,0.4695]
[1743816997703,0.00017786,84301.0,84300.0,0.4695]
[1743816998010,0.11547786,84301.0,84300.0,0.4695]
[1743816998796,0.11547786,84301.0,84300.0,0.44099882]
[1743816999002,0.11547786,84301.0,84300.0,0.42615446]
[1743816999612,0.00017786,84301.0,84300.0,0.50922276]
[1743816999808,0.00017786,84301.0,84300.0,0.62192276]
[1743817002307,0.00093786,84301.0,84300.0,0.62260276]
[1743817004118,0.00017786,84301.0,84300.0,0.62260276]
[1743817004816,0.00017786,84301.0,84300.0,0.53953446]
[1743817005016,0.00017786,84301.0,84300.0,0.62260276]
[1743817005217,0.00093786,84301.0,84300.0,0.62260276]
[1743817007018,0.08400516,84301.0,84300.0,0.10938]
[1743817007219,0.08400516,84301.0,84300.0,0.1087]
[1743817007526,0.0830752,84293.0,84292.0,0.3608]
[1743817007718,0.0838352,84293.0,84292.0,0.36148]
[1743817008423,0.00076,84293.0,84292.0,0.36148]
[1743817008816,0.11416,84293.0,84292.0,0.36148]
[1743817009619,0.1972352,84293.0,84292.0,0.36148]
[1743817011022,0.1972352,84293.0,84292.0,0.34663435]
[1743817020432,0.1972352,84293.0,84292.0,0.00068]
[1743817020631,0.0830771,84291.0,84290.0,0.1135]
[1743817020831,0.0837971,84291.0,84290.0,0.1141]
[1743817021027,0.0837971,84291.0,84290.0,0.0006]
[1743817021328,0.0415426,84283.0,84267.0,0.3608]
[1743817021528,0.0830978,84271.0,84267.0,0.3614]
[1743817021832,0.3414,84270.0,84267.0,0.3614]
[1743817022028,0.12014,84270.0,84267.0,0.3614]
[1743817022233,0.00084,84270.0,84269.0,0.0830988]
[1743817022533,0.00084,84270.0,84269.0,0.14050937]
[1743817022923,0.00084,84270.0,84269.0,0.14937127]
[1743817023726,0.0839379,84270.0,84269.0,0.14937127]
[1743817025029,0.0839379,84270.0,84269.0,0.51017127]
[1743817026943,0.0839379,84270.0,84269.0,0.49532216]
[1743817027635,0.0839379,84270.0,84269.0,0.13452216]
[1743817027831,0.00084,84270.0,84269.0,0.49532216]
[1743817028027,8e-05,84273.0,84271.0,0.0830968]
[1743817028223,8e-05,84273.0,84269.0,0.49532216]
[1743817028224,0.00017798,84277.0,84272.0,0.1148]
[1743817028428,0.00025798,84277.0,84276.0,0.4438919]
[1743817028629,0.00017798,84277.0,84276.0,0.4438919]
[1743817028937,0.00017798,84277.0,84276.0,0.3608]
[1743817029237,0.00017798,84277.0,84276.0,0.4732]
[1743817029833,0.00017798,84277.0,84276.0,0.5562919]
[1743817030037,0.00017798,84277.0,84276.0,0.6731919]
[1743817033837,0.00017798,84277.0,84276.0,0.5901]
[1743817034240,0.00017798,84277.0,84276.0,0.6731919]
[1743817035045,0.00101798,84277.0,84276.0,0.6731919]
[1743817036536,0.00017798,84277.0,84276.0,0.6731919]
[1743817036951,0.00017798,84277.0,84276.0,0.3123919]
[1743817037145,0.00101798,84277.0,84276.0,0.5901]
[1743817037340,0.08418888,84277.0,84276.0,0.5901]
[1743817037540,0.08418888,84277.0,84276.0,0.4738]
[1743817038644,0.19528888,84277.0,84276.0,0.4738]
[1743817039448,0.19528888,84277.0,84276.0,0.113]
[1743817043552,0.19528888,84277.0,84276.0,0.09815098]
[1743817050143,0.19528888,84277.0,84276.0,0.0006]
[1743817052256,0.0830979,84270.0,84269.0,0.03143127]
[1743817052458,0.0831067,84261.0,84260.0,0.00017798]
[1743817052756,0.4447467,84261.0,84260.0,0.00017798]
[1743817054750,0.4447467,84261.0,84260.0,0.02928167]
[1743817056463,0.0831097,84258.0,84255.0,8e-05]
[1743817056757,0.0831186,84249.0,84248.0,0.02112144]
[1743817056960,0.0842786,84249.0,84248.0,0.0006]
[1743817057163,0.0831245,84243.0,84242.0,0.1094]
[1743817057462,0.08416451,84243.0,84242.0,0.11]
[1743817058060,0.30346451,84243.0,84242.0,0.00946744]
[1743817058660,0.0831324,84235.0,84234.0,0.00017798]
[1743817058964,0.08433241,84235.0,84234.0,0.00085798]
[1743817059261,0.08433241,84235.0,84234.0,0.0207288]
[1743817059466,0.08433241,84235.0,84234.0,0.00085798]
[1743817060752,0.44513241,84235.0,84234.0,0.00962839]
[1743817061059,0.44513241,84235.0,84234.0,0.00954839]
[1743817062060,0.44513241,84235.0,84234.0,0.00077798]
[1743817063763,0.44513241,84235.0,84234.0,0.00973376]
[1743817064067,0.08433241,84235.0,84234.0,0.00973376]
[1743817065763,0.0831393,84228.0,84227.0,0.1116]
[1743817065961,0.0831472,84220.0,84219.0,0.1093]
[1743817066555,0.0831472,84220.0,84219.0,0.13771031]
[1743817066757,0.3006472,84220.0,84219.0,0.13771031]
[1743817068166,0.3020872,84220.0,84219.0,0.13771031]
[1743817069258,0.3020872,84220.0,84219.0,0.24951031]
[1743817071367,0.3020872,84220.0,84219.0,0.14021031]
[1743817071868,0.1931872,84220.0,84219.0,0.14021031]
[1743817072163,0.0845872,84220.0,84219.0,0.14021031]
[1743817074267,0.00144,84220.0,84219.0,0.14021031]
[1743817074566,0.0831424,84225.0,84219.0,0.14021031]
[1743817074768,0.0831424,84225.0,84220.0,0.1145]
[1743817075160,0.0831444,84223.0,84221.0,0.1166]
[1743817075362,0.0831444,84223.0,84222.0,0.1145]
[1743817076369,0.08454441,84223.0,84222.0,0.1145]
[1743817076766,0.08454441,84223.0,84222.0,0.4753]
[1743817076767,0.00140001,84223.0,84222.0,0.4753]
[1743817077066,0.0831436,84224.0,84222.0,0.4753]
[1743817077273,0.0831442,84223.0,84222.0,0.4753]
[1743817077661,0.0831442,84223.0,84219.0,0.02841031]
[1743817077662,0.0831472,84220.0,84219.0,0.02841031]
[1743817077857,0.0831541,84213.0,84211.0,0.00017808]
[1743817078062,0.0846341,84213.0,84211.0,0.00017808]
[1743817078263,0.0846341,84213.0,84211.0,0.00025808]
[1743817078569,0.0846341,84213.0,84212.0,0.38132347]
[1743817081163,0.3170341,84213.0,84212.0,0.38132347]
[1743817081771,0.3170341,84213.0,84212.0,0.39011855]
[1743817087976,0.3170341,84213.0,84212.0,0.02931855]
[1743817088277,0.0831551,84212.0,84211.0,0.00017808]
[1743817088779,0.3003551,84212.0,84211.0,0.00017808]
[1743817089370,0.6611551,84212.0,84211.0,0.00902637]
[1743817089570,0.66255511,84212.0,84211.0,0.00017808]
[1743817091274,0.66255511,84212.0,84211.0,0.02029489]
[1743817091978,0.30175511,84212.0,84211.0,0.02029489]
[1743817092673,0.30175511,84212.0,84211.0,0.02937589]
[1743817092878,0.30175511,84212.0,84211.0,0.02029489]
[1743817096992,0.30175511,84212.0,84211.0,0.0291418]
[1743817097186,0.30175511,84212.0,84211.0,0.02029489]
[1743817101388,0.30175511,84212.0,84211.0,0.02928179]
[1743817101995,0.30175511,84212.0,84202.0,0.118]
[1743817101996,0.083164,84203.0,84202.0,0.118]
[1743817102580,0.08456401,84203.0,84202.0,0.118]
[1743817102780,0.30536401,84203.0,84202.0,0.118]
[1743817103777,0.30536401,84203.0,84202.0,0.12678984]
[1743817105194,0.30536401,84203.0,84202.0,0.14650146]
[1743817106793,0.30536401,84203.0,84202.0,0.13163938]
[1743817110589,0.0831659,84201.0,84198.0,8e-05]
[1743817110794,0.0831659,84201.0,84188.0,0.3608]
[1743817110795,0.0831709,84196.0,84195.0,0.1124]
[1743817110993,0.0831709,84196.0,84195.0,0.11248]
[1743817111497,0.0831709,84196.0,84195.0,0.13705459]
[1743817111795,0.3083709,84196.0,84195.0,0.13705459]
[1743817112186,0.3083709,84196.0,84195.0,0.14586494]
[1743817114289,0.3083709,84196.0,84195.0,0.14578494]
[1743817114987,0.3083709,84196.0,84195.0,0.26268494]
[1743817115698,0.30977091,84196.0,84195.0,0.26268494]
[1743817116994,0.30977091,84196.0,84195.0,0.14578494]
[1743817118903,0.58740001,84196.0,84179.0,0.3608]
[1743817119196,0.0831867,84180.0,84179.0,0.00886494]
[1743817119402,0.0831956,84171.0,84170.0,0.3608]
[1743817119696,0.0831956,84171.0,84170.0,0.39497132]
[1743817120397,0.2876956,84171.0,84170.0,0.39497132]
[1743817127397,0.2891356,84171.0,84170.0,0.39497132]
[1743817128006,0.0831995,84167.0,84166.0,8e-05]
[1743817128204,0.08459951,84167.0,84166.0,8e-05]
[1743817128902,0.64639951,84167.0,84166.0,8e-05]
[1743817129403,0.64639951,84167.0,84146.0,0.81988]
[1743817129404,0.0832193,84147.0,84146.0,0.81988]
[1743817129593,0.0832193,84147.0,84146.0,0.41168]
[1743817129794,0.08461931,84147.0,84146.0,0.41168]
[1743817131302,0.08461931,84147.0,84146.0,0.36951261]
[1743817131500,0.08461931,84147.0,84146.0,0.39478467]
[1743817131895,0.08461931,84147.0,84146.0,0.03398467]
[1743817132091,0.0832233,84143.0,84142.0,0.2058]
[1743817132495,0.0832233,84143.0,84142.0,0.1164]
[1743817132496,0.0847033,84143.0,84142.0,0.1164]
[1743817132899,0.2030033,84143.0,84142.0,0.1164]
[1743817133297,0.2030033,84143.0,84142.0,0.14132004]
[1743817133694,0.2030033,84143.0,84142.0,0.15022801]
[1743817135106,0.0847033,84143.0,84142.0,0.15022801]
[1743817139106,0.2001033,84143.0,84142.0,0.15022801]
[1743817140011,0.0847033,84143.0,84142.0,0.15022801]
[1743817140212,0.0832233,84143.0,84142.0,0.15022801]
[1743817141404,0.0846633,84143.0,84142.0,0.15022801]
[1743817142016,0.1749633,84143.0,84142.0,0.15022801]
[1743817144605,0.0846633,84143.0,84142.0,0.15022801]